bitfinex/quotes_SOLUSD_20220101
["timestamp","ask_amount","ask_price","bid_price","bid_amount"]
[1641069629642,39.57038462,178.9,178.82,8.387]
[1641069630644,40.07038462,178.9,178.82,8.387]
[1641069630843,0.1358,178.89,178.82,8.387]
[1641069634349,0.1358,178.89,178.81,8.3874]
[1641069634752,8.5232,178.89,178.81,8.3874]
[1641069635150,8.7832,178.89,178.81,8.3874]
[1641069639555,8.7832,178.89,178.77,1.1935]
[1641069639757,9.2832,178.89,178.74,73.3833]
[1641069639976,8.33,178.88,178.74,73.3833]
[1641069640177,8.3893,178.85,178.74,73.3833]
[1641069640376,8.3893,178.85,178.72,1.2474]
[1641069640577,8.6493,178.85,178.76,8.3898]
[1641069641180,8.6493,178.85,178.72,29.2111]
[1641069641377,9.1493,178.85,178.72,29.2111]
[1641069641576,0.84816457,178.82,178.72,29.2111]
[1641069641776,34.30530621,178.82,178.75,8.3903]
[1641069641977,34.56530621,178.82,178.75,8.3903]
[1641069642978,34.21714164,178.82,178.75,8.3903]
[1641069643179,8.6503,178.82,178.75,8.3903]
[1641069643380,0.1358,178.81,178.75,8.3903]
[1641069644382,0.1358,178.81,178.75,8.6503]
[1641069646284,0.1358,178.86,178.75,8.6503]
[1641069646483,0.1358,178.86,178.76,9.75669368]
[1641069646682,0.1358,178.86,178.81,8.3857]
[1641069647082,0.1358,178.86,178.81,8.6457]
[1641069647283,0.1358,178.86,178.81,10.07239368]
[1641069647684,0.1358,178.86,178.81,8.6457]
[1641069648486,0.1358,178.86,178.77,1.2954]
[1641069648683,0.1358,178.86,178.76,74.7733]
[1641069648684,0.1358,178.86,178.74,8.33]
[1641069648889,0.1358,178.86,178.71,81.6504]
[1641069649585,8.389,178.84,178.78,8.3888]
[1641069649983,8.649,178.84,178.78,8.3888]
[1641069652086,8.649,178.84,178.76,8.3894]
[1641069652688,0.1358,178.83,178.76,8.3894]
[1641069652887,8.5253,178.83,178.76,8.3894]
[1641069653088,8.7853,178.83,178.76,8.3894]
[1641069660496,0.3958,178.83,178.76,8.3894]
[1641069660995,0.1358,178.83,178.76,8.3894]
[1641069662396,8.5253,178.83,178.76,8.3894]
[1641069662595,8.7853,178.83,178.76,8.3894]
[1641069662795,8.6495,178.83,178.76,8.3894]
[1641069666325,0.1358,178.82,178.76,8.3894]
[1641069671936,0.1358,178.82,178.76,7.54123543]
[1641069673537,8.5257,178.82,178.76,7.54123543]
[1641069673737,8.7857,178.82,178.76,7.54123543]
[1641069674436,9.2857,178.82,178.76,7.54123543]
[1641069675539,0.1358,178.82,178.76,7.80123543]
[1641069676144,0.1358,178.87,178.76,7.80123543]
[1641069679344,0.1358,178.88,178.76,7.80123543]
[1641069679544,8.3882,178.87,178.76,7.80123543]
[1641069679951,8.6482,178.87,178.76,7.80123543]
[1641069680748,8.3882,178.87,178.76,7.80123543]
[1641069681147,8.5234,178.88,178.76,7.80123543]
[1641069682047,8.7834,178.88,178.76,7.80123543]
[1641069682251,0.3958,178.88,178.76,7.80123543]
[1641069682547,0.1358,178.88,178.76,7.80123543]
[1641069683448,8.5234,178.88,178.76,7.80123543]
[1641069683950,8.7834,178.88,178.76,7.80123543]
[1641069684549,8.7834,178.88,178.76,7.54123543]
[1641069684752,8.5234,178.88,178.76,7.54123543]
[1641069685054,0.1358,178.88,178.76,7.54123543]
[1641069686249,0.1358,178.88,178.76,7.80123543]
[1641069687353,0.1358,178.88,178.76,16.13123543]
[1641069689255,0.1358,178.88,178.76,15.87123543]
[1641069689453,8.5237,178.88,178.76,15.87123543]
[1641069689655,8.7837,178.88,178.76,15.87123543]
[1641069692255,17.1137,178.88,178.76,7.54123543]
[1641069695357,17.6137,178.88,178.76,7.54123543]
[1641069700464,17.1137,178.88,178.76,7.54123543]
[1641069700965,17.6137,178.88,178.76,7.54123543]
[1641069705974,17.6137,178.88,178.74,8.3904]
[1641069706874,18.9385,178.88,178.74,8.3904]
[1641069716005,18.1785,178.88,178.74,10.07709368]
[1641069716205,8.5237,178.88,178.75,8.33]
[1641069716406,0.1358,178.88,178.81,8.3872]
[1641069721316,8.5227,178.9,178.81,8.3872]
[1641069721517,40.60244339,178.9,178.81,8.3872]
[1641069722217,40.34244339,178.9,178.81,8.3872]
[1641069722619,40.34244339,178.9,178.81,8.6472]
[1641069722819,40.34244339,178.9,178.81,8.3872]
[1641069723618,40.60244339,178.9,178.81,8.3872]
[1641069726346,40.60244339,178.9,178.77,29.2203]
[1641069726547,40.60244339,178.9,178.77,1.5231]
[1641069727752,40.60244339,178.9,178.8,8.3879]
[1641069728353,40.60244339,178.9,178.77,1.2631]
[1641069728752,41.10244339,178.9,178.77,1.2631]
[1641069728957,1.58496252,178.89,178.77,1.2631]
[1641069729155,8.3885,178.87,178.79,8.3882]
[1641069729559,8.6485,178.87,178.79,8.3882]
[1641069729757,0.1358,178.86,178.79,8.3882]
[1641069732766,8.3886,178.87,178.79,8.3882]
[1641069732964,8.6486,178.87,178.79,8.3882]
[1641069735370,8.3886,178.87,178.79,8.3882]
[1641069735567,0.1358,178.88,178.79,8.6482]
[1641069735767,0.1358,178.86,178.79,8.6482]
[1641069736368,0.1358,178.86,178.79,8.3882]
[1641069738976,8.7843,178.87,178.79,8.3882]
[1641069740380,8.7843,178.87,178.78,8.3889]
[1641069740781,8.7843,178.87,178.77,1.2631]
[1641069741184,10.36926252,178.87,178.77,1.2631]
[1641069741385,19.19926252,178.87,178.76,74.2446]
[1641069741782,1.58496252,178.86,178.76,74.2446]
[1641069741984,8.3903,178.83,178.76,74.2446]
[1641069742383,8.6503,178.83,178.76,74.2446]
[1641069742584,0.1358,178.82,178.76,74.2446]
[1641069743586,0.1358,178.82,178.76,82.6345]
[1641069745002,0.1358,178.82,178.76,74.2446]
[1641069746009,0.1358,178.82,178.75,8.3903]
[1641069747312,0.1358,178.82,178.72,76.4337]
[1641069747313,0.1358,178.82,178.72,75.139]
[1641069747714,0.1358,178.82,178.65,9.5303]
[1641069747913,0.1358,178.82,178.65,10.95699368]
[1641069747914,9.8112,178.82,178.65,10.95699368]
[1641069748113,11.39616252,178.82,178.65,10.95699368]
[1641069748313,11.89616252,178.82,178.65,9.5303]
[1641069748513,11.89616252,178.82,178.69,8.3931]
[1641069748514,8.33,178.81,178.69,8.3931]
[1641069748915,9.09,178.81,178.69,8.3931]
[1641069749314,37.07815608,178.76,178.69,8.3931]
[1641069749515,37.33815608,178.76,178.69,8.3931]
[1641069750317,28.68475608,178.76,178.69,8.3931]
[1641069750717,8.393,178.77,178.69,8.3931]
[1641069750919,0.1358,178.8,178.69,8.3931]
[1641069751117,8.4658,178.8,178.69,8.3931]
[1641069751717,31.49930404,178.79,178.69,8.3931]
[1641069751920,31.99930404,178.79,178.69,8.3931]
[1641069752118,31.49930404,178.79,178.69,8.3931]
[1641069752324,8.3931,178.77,178.65,37.5053]
[1641069752519,8.3931,178.77,178.68,8.3935]
[1641069753019,8.6531,178.77,178.68,8.3935]
[1641069753618,8.6531,178.77,178.67,8.3941]
[1641069755621,0.1358,178.76,178.67,8.3941]
[1641069755825,8.5297,178.76,178.67,8.3941]
[1641069756024,8.7897,178.76,178.67,8.3941]
[1641069759430,9.2897,178.76,178.65,9.5949]
[1641069759629,8.7897,178.76,178.65,9.5949]
[1641069761838,9.2897,178.76,178.65,9.5949]
[1641069763241,0.1358,178.76,178.65,9.5949]
[1641069763437,0.1358,178.76,178.66,1.42669368]
[1641069763638,0.1358,178.77,178.71,8.3917]
[1641069763866,0.1358,178.77,178.72,1.2336]
[1641069764065,0.1358,178.77,178.72,1.42669368]
[1641069764266,0.1358,178.77,178.73,1.42669368]
[1641069764466,0.1358,178.77,178.73,29.39039368]
[1641069764870,0.1358,178.77,178.74,1.42669368]
[1641069765270,0.1358,178.77,178.75,8.3891]
[1641069765668,0.1358,178.77,178.75,9.81579368]
[1641069766067,0.1358,178.77,178.75,1.42669368]
[1641069766268,0.1358,178.77,178.74,1.3106]
[1641069766269,6.19790272,178.77,178.74,1.3106]
[1641069766466,6.19790272,178.77,178.72,77.1449]
[1641069766467,6.45790272,178.77,178.71,75.0582]
[1641069766667,6.06210272,178.77,178.71,75.0582]
[1641069767270,6.06210272,178.77,178.68,9.5267]
[1641069767669,6.06210272,178.77,178.69,1.42669368]
[1641069768072,6.32210272,178.77,178.68,1.1967]
[1641069769673,0.1358,178.76,178.68,1.1967]
[1641069772775,0.1358,178.78,178.68,1.1967]
[1641069774778,8.5274,178.78,178.68,1.1967]
[1641069774980,9.2874,178.78,178.68,1.1967]
[1641069776879,9.2874,178.78,178.66,72.7866]
[1641069777479,10.87236252,178.78,178.66,72.7866]
[1641069778881,10.87236252,178.78,178.64,1.2729]
[1641069779486,8.33,178.77,178.64,1.2729]
[1641069779683,8.3933,178.75,178.64,1.2729]
[1641069779982,25.66497849,178.74,178.64,1.2729]
[1641069780381,25.92497849,178.74,178.64,1.2729]
[1641069781381,25.92497849,178.74,178.65,1.42669368]
[1641069782984,0.1358,178.73,178.65,1.42669368]
[1641069784084,0.1358,178.73,178.64,1.2729]
[1641069795092,0.1358,178.73,178.62,75.6534]
[1641069795294,0.1358,178.73,178.6,92.9]
[1641069795295,8.4658,178.73,178.6,92.9]
[1641069795493,8.7258,178.73,178.6,92.9]
[1641069795693,9.2258,178.73,178.6,92.9]
[1641069796094,1.2243,178.72,178.6,92.9]
[1641069796293,8.3959,178.69,178.6,92.9]
[1641069796494,8.6559,178.69,178.6,92.9]
[1641069796792,9.1559,178.69,178.6,92.9]
[1641069799198,9.1559,178.69,178.45,16.6405]
[1641069799199,17.4859,178.69,178.45,16.6405]
[1641069799399,104.13,178.67,178.46,76.014]
[1641069799599,8.3992,178.62,178.47,1.2123]
[1641069800000,8.33,178.61,178.47,1.2123]
[1641069800399,1.2224,178.6,178.47,1.2123]
[1641069800599,18.2127,178.6,178.47,1.2123]
[1641069800901,18.2127,178.6,178.42,8.33]
[1641069800902,18.7127,178.6,178.42,8.33]
[1641069801498,18.7127,178.6,178.41,1.2863]
[1641069801699,20.13939368,178.6,178.41,1.2863]
[1641069801899,1.58496252,178.59,178.41,1.2863]
[1641069802098,8.33,178.58,178.41,1.2863]
[1641069802301,8.4028,178.55,178.41,1.2863]
[1641069802501,17.4928,178.55,178.41,1.2863]
[1641069804804,17.4928,178.55,178.39,1.2103]
[1641069805026,17.4928,178.55,178.39,2.4143]
[1641069805926,0.1358,178.54,178.39,2.4143]
[1641069806229,8.33,178.53,178.39,2.4143]
[1641069806429,8.83,178.53,178.39,2.4143]
[1641069806627,9.09,178.53,178.36,8.33]
[1641069806829,10.51669368,178.53,178.32,9.02218611]
[1641069807028,24.40862812,178.47,178.32,9.02218611]
[1641069807227,32.73862812,178.47,178.32,9.02218611]
[1641069807429,33.49862812,178.47,178.32,0.69218611]
[1641069808029,32.99862812,178.47,178.32,0.69218611]
[1641069808630,32.73862812,178.47,178.32,0.69218611]
[1641069808837,8.33,178.47,178.32,2.11887979]
[1641069809229,8.33,178.47,178.33,92.9]
[1641069809431,0.1358,178.46,178.33,92.9]
[1641069809832,0.1358,178.46,178.33,101.49]
[1641069810032,0.1358,178.46,178.33,102.91669368]
[1641069810232,0.1358,178.46,178.33,101.23]
[1641069811834,0.1358,178.49,178.33,101.23]
[1641069812948,0.1358,178.49,178.33,101.49]
[1641069813857,8.5412,178.49,178.33,101.23]
[1641069814055,8.8012,178.49,178.33,101.23]
[1641069814253,9.3012,178.49,178.33,101.23]
[1641069814454,9.3012,178.49,178.33,102.516]
[1641069814956,8.8012,178.49,178.33,102.516]
[1641069815155,8.33,178.48,178.33,102.516]
[1641069815357,17.2357,178.48,178.33,102.516]
[1641069815559,0.1358,178.47,178.33,102.516]
[1641069815959,8.33,178.46,178.33,92.9]
[1641069816381,9.09,178.46,178.32,0.69218611]
[1641069817089,8.4071,178.45,178.32,0.69218611]
[1641069817288,8.33,178.45,178.32,0.69218611]
[1641069817486,8.59,178.45,178.32,0.69218611]
[1641069818487,8.33,178.45,178.32,0.69218611]
[1641069818690,0.1358,178.44,178.32,0.69218611]
[1641069818892,0.1358,178.44,178.32,10.44887979]
[1641069819089,0.1358,178.44,178.32,10.70887979]
[1641069819290,0.1358,178.44,178.33,92.9]
[1641069819488,0.1358,178.44,178.34,9.86539993]
[1641069819689,0.1358,178.44,178.34,19.38553714]
[1641069819888,0.1358,178.44,178.35,2.64309368]
[1641069820097,0.1358,178.44,178.36,8.33]
[1641069820295,0.1358,178.44,178.36,9.75669368]
[1641069820496,0.1358,178.44,178.37,1.42669368]
[1641069820697,0.1358,178.44,178.38,8.33]
[1641069821098,0.1358,178.44,178.38,10.01669368]
[1641069821300,0.1358,178.44,178.38,9.75669368]
[1641069821499,0.1358,178.44,178.38,8.33]
[1641069821701,0.1358,178.53,178.38,8.33]
[1641069821901,8.5392,178.53,178.38,8.33]
[1641069822099,9.8463,178.53,178.38,8.33]
[1641069822299,10.3463,178.53,178.38,8.33]
[1641069822502,10.6063,178.53,178.38,8.33]
[1641069822901,8.33,178.52,178.35,1.2164]
[1641069823100,8.59,178.52,178.35,1.2164]
[1641069823302,9.09,178.52,178.35,1.2164]
[1641069823500,8.59,178.52,178.35,2.64309368]
[1641069823701,10.17496252,178.52,178.36,1.213]
[1641069824102,8.59,178.52,178.36,2.63969368]
[1641069824303,8.59,178.52,178.36,2.89969368]
[1641069824503,16.9938,178.52,178.36,1.473]
[1641069824800,0.1358,178.51,178.36,1.473]
[1641069825001,8.4658,178.51,178.36,2.89969368]
[1641069825500,8.7258,178.51,178.36,2.89969368]
[1641069825700,9.2258,178.51,178.36,2.63969368]
[1641069825900,17.6301,178.51,178.36,1.213]
[1641069826903,17.6301,178.51,178.35,1.2164]
[1641069827501,8.407,178.46,178.35,1.2164]
[1641069827704,8.33,178.47,178.33,79.3359]
[1641069827903,0.1358,178.45,178.33,79.3359]
[1641069832009,0.1358,178.45,178.33,79.5959]
[1641069833209,0.1358,178.45,178.33,79.3359]
[1641069833811,0.1358,178.45,178.34,1.2633]
[1641069836342,0.1358,178.45,178.34,1.5233]
[1641069836546,0.1358,178.45,178.34,1.2633]
[1641069837444,0.1358,178.45,178.33,79.3359]
[1641069838052,8.543,178.45,178.33,79.3359]
[1641069838246,0.1358,178.45,178.33,79.3359]
[1641069838446,0.3958,178.45,178.33,79.3359]
[1641069838850,8.7258,178.45,178.33,79.3359]
[1641069839247,9.2258,178.45,178.33,79.3359]
[1641069839448,8.7258,178.45,178.33,79.3359]
[1641069839647,17.1328,178.45,178.33,79.3359]
[1641069840249,8.7258,178.45,178.33,79.3359]
[1641069840749,8.4658,178.45,178.33,79.3359]
[1641069840950,0.1358,178.45,178.34,8.33]
[1641069841150,0.1358,178.45,178.34,9.5543]
[1641069841349,0.1358,178.45,178.35,1.42669368]
[1641069841550,0.1358,178.48,178.35,10.01669368]
[1641069841751,0.1358,178.48,178.35,9.75669368]
[1641069842151,0.1358,178.48,178.36,1.2767]
[1641069842650,1.4461,178.48,178.36,1.2767]
[1641069842851,1.7061,178.48,178.36,1.2767]
[1641069843253,2.2061,178.48,178.36,1.2767]
[1641069844054,10.6118,178.48,178.33,79.3359]
[1641069844253,8.33,178.47,178.33,78.8359]
[1641069844454,8.83,178.47,178.33,80.1614]
[1641069844655,9.09,178.47,178.33,80.1614]
[1641069844853,0.1358,178.46,178.33,80.1614]
[1641069845059,8.4658,178.46,178.33,80.1614]
[1641069845255,8.4075,178.45,178.33,80.1614]
[1641069845457,1.2657,178.45,178.33,80.1614]
[1641069845757,1.5257,178.45,178.33,80.1614]
[1641069846859,9.9327,178.45,178.33,80.1614]
[1641069847961,8.408,178.43,178.33,80.1614]
[1641069848160,8.4658,178.44,178.33,80.1614]
[1641069848365,0.26,178.43,178.33,80.1614]
[1641069848962,9.2258,178.44,178.33,80.1614]
[1641069849362,9.2258,178.44,178.33,79.6614]
[1641069850663,8.4085,178.42,178.33,79.6614]
[1641069850866,24.84354237,178.41,178.33,79.6614]
[1641069851066,25.23934237,178.41,178.33,79.6614]
[1641069851269,25.23934237,178.41,178.32,0.69218611]
[1641069851872,34.14834237,178.41,178.32,0.69218611]
[1641069852069,8.33,178.4,178.32,0.69218611]
[1641069852470,9.09,178.4,178.32,0.69218611]
[1641069853271,8.4125,178.34,178.18,8.33]
[1641069853471,25.62105038,178.33,178.18,6.83]
[1641069853673,25.62105038,178.33,178.18,8.25669368]
[1641069853879,26.38105038,178.33,178.18,8.25669368]
[1641069854076,0.1358,178.32,178.18,6.83]
[1641069854575,8.33,178.31,178.18,1.42669368]
[1641069854778,8.33,178.31,178.17,92.9]
[1641069854980,8.59,178.31,178.17,92.9]
[1641069855579,17.5042,178.31,178.17,92.9]
[1641069856277,17.5042,178.31,178.11,1.3072]
[1641069857080,8.4169,178.25,178.11,1.3072]
[1641069857279,30.8741741,178.24,178.11,2.73389368]
[1641069857480,31.1341741,178.24,178.11,2.99389368]
[1641069859182,31.1341741,178.24,178.11,2.73389368]
[1641069859582,31.1341741,178.24,178.11,1.3072]
[1641069859785,31.1341741,178.24,178.08,84.04269368]
[1641069859786,8.33,178.23,178.07,94.1093]
[1641069859985,9.09,178.23,178.07,94.1093]
[1641069860183,9.2258,178.23,178.07,94.1093]
[1641069860390,9.2258,178.23,178.07,1.2093]
[1641069860586,10.4306,178.23,178.07,1.2093]
[1641069861315,10.4306,178.23,178.03,8.33]
[1641069861511,18.8483,178.23,178.03,8.33]
[1641069861912,174.1346,178.23,178.03,8.33]
[1641069863115,173.3746,178.23,178.03,8.33]
[1641069863313,164.9569,178.23,178.04,1.42669368]
[1641069863513,8.4658,178.23,178.05,8.33]
[1641069863914,8.4658,178.23,178.06,1.42669368]
[1641069864116,8.4658,178.23,178.07,1.3221]
[1641069864615,8.4658,178.23,178.08,92.9]
[1641069865015,8.4658,178.23,178.08,93.16]
[1641069865415,8.4658,178.23,178.08,92.9]
[1641069866017,8.7258,178.23,178.08,92.9]
[1641069866214,1.3207,178.22,178.08,92.9]
[1641069866420,8.4204,178.17,178.08,92.9]
[1641069866617,30.08751276,178.16,178.08,92.9]
[1641069867116,30.34751276,178.16,178.08,92.9]
[1641069867917,30.34751276,178.16,178.08,9.6126]
[1641069868219,47.09851276,178.16,178.01,1.2579]
[1641069868417,47.09851276,178.16,177.99,8.33]
[1641069868918,46.83851276,178.16,177.99,8.33]
[1641069869117,38.41751276,178.16,178.0,1.257]
[1641069869317,38.41751276,178.16,178.02,92.9]
[1641069869517,38.41751276,178.16,178.02,93.16]
[1641069869717,0.1358,178.15,178.02,93.16]
[1641069870118,0.1358,178.15,178.02,94.58669368]
[1641069870722,0.1358,178.15,178.03,8.33]
[1641069870919,0.1358,178.15,178.03,16.8789811]
[1641069871118,0.1358,178.15,178.04,1.42669368]
[1641069871320,0.1358,178.15,178.04,9.75669368]
[1641069871521,0.1358,178.15,178.04,10.01669368]
[1641069871720,0.1358,178.15,178.05,1.42669368]
[1641069871921,0.1358,178.15,178.07,0.30786651]
[1641069872121,0.1358,178.15,178.08,8.33]
[1641069872322,0.1358,178.15,178.08,9.75669368]
[1641069872520,0.1358,178.15,178.09,1.42669368]
[1641069872722,0.1358,178.15,178.1,8.33]
[1641069872923,0.1358,178.15,178.1,16.8789811]
[1641069873224,0.1358,178.25,178.11,9.97567478]
[1641069873424,0.1358,178.25,178.12,8.33]
[1641069873624,0.1358,178.25,178.12,10.01669368]
[1641069873822,0.1358,178.25,178.13,1.42669368]
[1641069874023,0.1358,178.25,178.14,8.33]
[1641069874424,0.1358,178.25,178.15,1.42669368]
[1641069874623,0.1358,178.25,178.16,8.33]
[1641069875024,0.1358,178.25,178.16,8.59]
[1641069875624,0.1358,178.25,178.17,1.42669368]
[1641069875828,0.1358,178.25,178.17,9.75669368]
[1641069876224,0.1358,178.28,178.18,1.42669368]
[1641069877026,0.1358,178.28,178.17,8.33]
[1641069879029,0.1358,178.28,178.17,8.59]
[1641069879830,0.1358,178.28,178.17,10.01669368]
[1641069880627,0.1358,178.33,178.17,10.01669368]
[1641069881426,0.1358,178.33,178.18,74.7906]
[1641069881628,0.1358,178.33,178.19,8.33]
[1641069881926,0.1358,178.33,178.19,9.75669368]
[1641069883328,0.1358,178.33,178.19,10.01669368]
[1641069883927,0.1358,178.34,178.19,10.01669368]
[1641069884831,0.1358,178.34,178.2,1.42669368]
[1641069885033,0.1358,178.34,178.2,1.68669368]
[1641069886037,0.1358,178.34,178.21,1.42669368]
[1641069886435,0.1358,178.34,178.21,1.68669368]
[1641069887238,0.1358,178.34,178.22,1.42669368]
[1641069887667,0.1358,178.34,178.22,1.68669368]
[1641069889167,0.1358,178.34,178.22,10.01669368]
[1641069889367,0.1358,178.34,178.22,8.33]
[1641069890468,0.1358,178.34,178.22,8.59]
[1641069894072,8.4658,178.34,178.18,74.7906]
[1641069894471,9.2258,178.34,178.18,74.7906]
[1641069895077,1.58496252,178.33,178.18,74.7906]
[1641069895473,0.1358,178.32,178.18,74.7906]
[1641069896276,27.28489757,178.31,178.18,74.7906]
[1641069896474,27.54489757,178.31,178.18,74.7906]
[1641069896974,27.54489757,178.31,178.18,75.0506]
[1641069898579,0.1358,178.3,178.18,75.0506]
[1641069898790,0.1358,178.3,178.18,0.26]
[1641069898976,0.1358,178.3,178.16,8.59]
[1641069899778,0.1358,178.3,178.16,8.33]
[1641069899976,8.55,178.3,178.16,8.33]
[1641069900379,8.81,178.3,178.16,8.33]
[1641069900778,9.31,178.3,178.16,8.33]
[1641069901178,0.3958,178.3,178.16,8.33]
[1641069901580,0.1358,178.3,178.16,8.33]
[1641069902588,8.5501,178.3,178.16,8.33]
[1641069902785,0.1358,178.3,178.16,8.33]
[1641069903187,0.1358,178.3,178.16,10.01669368]
[1641069909994,0.1358,178.3,178.16,114.14669368]
[1641069910209,0.1358,178.32,178.16,114.14669368]
[1641069910409,0.1358,178.32,178.17,8.3072213]
[1641069910610,0.1358,178.32,178.19,104.13]
[1641069910809,0.1358,178.32,178.2,8.33]
[1641069911010,0.1358,178.32,178.2,10.01669368]
[1641069911409,0.1358,178.32,178.21,80.76899368]
[1641069911608,0.1358,178.32,178.22,8.33]
[1641069911811,0.1358,178.32,178.22,9.75669368]
[1641069912008,0.1358,178.32,178.22,8.59]
[1641069912209,0.1358,178.32,178.23,1.42669368]
[1641069912410,0.1358,178.32,178.24,8.33]
[1641069912613,0.1358,178.32,178.24,8.59]
[1641069912812,0.1358,178.32,178.25,1.42669368]
[1641069913012,0.1358,178.32,178.26,8.33]
[1641069913211,0.1358,178.38,178.26,8.33]
[1641069913412,0.1358,178.38,178.26,8.59]
[1641069914026,0.1358,178.38,178.26,8.33]
[1641069915129,0.1358,178.38,178.27,1.42669368]
[1641069915531,0.1358,178.38,178.27,0.26]
[1641069916029,0.1358,178.38,178.26,8.59]
[1641069917833,0.1358,178.38,178.26,8.33]
[1641069919034,0.1358,178.38,178.26,8.59]
[1641069919637,0.1358,178.38,178.26,8.33]
[1641069919835,1.72076252,178.38,178.26,8.33]
[1641069920037,1.98076252,178.38,178.26,8.33]
[1641069920637,1.72076252,178.38,178.26,8.33]
[1641069921037,0.1358,178.38,178.26,8.33]
[1641069923741,0.1358,178.38,178.26,8.59]
[1641069925345,24.06426798,178.39,178.26,6.59]
[1641069925547,24.32426798,178.39,178.26,6.59]
[1641069925745,24.06426798,178.39,178.26,6.59]
[1641069926349,24.06426798,178.39,178.26,6.33]
[1641069926550,24.06426798,178.39,178.26,6.59]
[1641069927052,24.32426798,178.39,178.26,6.59]
[1641069927650,32.73426798,178.39,178.26,6.59]
[1641069931956,24.06426798,178.39,178.26,6.59]
[1641069933376,24.32426798,178.39,178.26,6.59]
[1641069935979,24.32426798,178.39,178.26,0.26]
[1641069936177,24.32426798,178.39,178.27,8.33]
[1641069936378,1.58496252,178.38,178.27,8.33]
[1641069936578,1.84496252,178.38,178.27,8.59]
[1641069938983,0.26,178.38,178.27,8.59]
[1641069939384,1.58496252,178.38,178.27,8.59]
[1641069939584,1.84496252,178.38,178.27,8.59]
[1641069939787,0.26,178.38,178.27,8.59]
[1641069940192,25.6492305,178.39,178.27,8.59]
[1641069940399,25.6492305,178.39,178.27,10.01669368]
[1641069941285,24.06426798,178.39,178.27,10.01669368]
[1641069941487,24.32426798,178.39,178.27,10.01669368]
[1641069942090,24.32426798,178.39,178.27,8.59]
[1641069945991,24.32426798,178.39,178.27,8.33]
[1641069946391,24.32426798,178.39,178.28,1.42669368]
[1641069946592,24.32426798,178.39,178.29,8.33]
[1641069947094,24.32426798,178.39,178.29,6.83]
[1641069947493,24.32426798,178.39,178.29,7.09]
[1641069949496,24.32426798,178.39,178.29,6.83]
[1641069950600,24.06426798,178.39,178.29,6.83]
[1641069950995,24.06426798,178.39,178.29,7.09]
[1641069951795,24.06426798,178.39,178.29,6.09]
[1641069952396,25.9092305,178.39,178.29,6.09]
[1641069955101,25.9092305,178.39,178.26,8.33]
[1641069955498,1.58496252,178.38,178.26,8.33]
[1641069955700,9.99566252,178.38,178.26,8.33]
[1641069955898,11.50036252,178.38,178.26,8.33]
[1641069956301,1.58496252,178.37,178.26,8.33]
[1641069956600,1.84496252,178.37,178.26,8.59]
[1641069957198,8.6709,178.37,178.26,8.59]
[1641069957599,8.6709,178.37,178.26,8.09]
[1641069958204,0.26,178.37,178.26,8.09]
[1641069958403,11.49996252,178.38,178.26,8.09]
[1641069961211,1.5047,178.38,178.26,8.09]
[1641069962712,3.08966252,178.38,178.26,8.09]
[1641069968739,3.08966252,178.38,178.26,7.83]
[1641069969939,1.58496252,178.37,178.26,7.83]
[1641069970139,1.58496252,178.37,178.26,8.09]
[1641069970340,1.84496252,178.37,178.26,8.09]
[1641069975453,1.58496252,178.37,178.26,8.09]
[1641069975851,10.49586252,178.37,178.25,1.3252]
[1641069976049,10.49586252,178.37,178.21,161.1022]
[1641069976251,10.49586252,178.37,178.21,87.6804]
[1641069976651,1.58496252,178.34,178.21,87.6804]
[1641069976851,8.4132,178.32,178.21,87.6804]